bitfinex/quotes_ETHUSD_20240703
["timestamp","ask_amount","ask_price","bid_price","bid_amount"]
[1720034879179,1.25638716,3284.9,3284.3,6.88187469]
[1720034879463,1.25638716,3285.1,3284.5,6.25455]
[1720034879624,1.25638716,3285.1,3284.7,3.04435]
[1720034879825,1.25638716,3285.4,3284.9,3.04419]
[1720034880061,1.57113364,3285.7,3285.0,3.04412]
[1720034880229,1.57113364,3285.9,3285.1,0.6251262]
[1720034880673,1.57113364,3285.9,3285.4,3.0437]
[1720034880870,1.57113364,3286.1,3285.5,6.26986588]
[1720034881063,4.61414364,3286.3,3285.2,3.76]
[1720034881377,1.57131815,3286.1,3285.2,6.80393]
[1720034881541,1.57131815,3286.1,3285.3,3.0438]
[1720034881740,1.57131815,3286.1,3285.4,0.984773]
[1720034881950,1.57131815,3286.0,3285.2,6.80395]
[1720034882156,1.57131815,3286.0,3285.2,3.59395]
[1720034882357,0.07608027,3285.9,3284.9,3.04422]
[1720034882561,1.57127369,3286.0,3285.1,3.04396]
[1720034882739,1.57127369,3286.0,3285.1,6.08792]
[1720034882935,1.57127369,3286.1,3285.2,1.229792]
[1720034883354,1.57127369,3286.0,3285.2,1.229792]
[1720034883555,1.57127369,3286.0,3284.7,3.21]
[1720034883556,1.64735707,3286.0,3284.7,3.21]
[1720034883873,1.57127369,3285.7,3284.8,3.04427]
[1720034884066,0.07609126,3285.7,3284.8,3.04427]
[1720034884377,1.57113648,3285.6,3284.6,3.04448]
[1720034884636,0.52717244,3285.6,3284.7,3.304448]
[1720034884759,1.57113648,3285.6,3284.7,6.348838]
[1720034885157,1.57113648,3285.7,3284.7,6.348838]
[1720034885366,3.04375,3285.5,3284.7,3.0]
[1720034885678,6.08822,3285.1,3284.3,0.62712469]
[1720034885887,3.12025961,3285.0,3284.0,3.04501]
[1720034886185,4.69139609,3285.0,3283.9,3.04514]
[1720034886681,1.57113648,3284.9,3283.9,3.04514]
[1720034886858,3.12025961,3285.0,3284.0,3.04504]
[1720034886859,4.69139704,3285.0,3284.0,3.04504]
[1720034887178,0.07611056,3285.0,3284.0,3.04504]
[1720034887393,0.07611056,3285.0,3283.1,3.04588]
[1720034887394,2.739,3284.9,3283.1,3.04588]
[1720034887679,1.570378,3284.5,3283.3,3.04569]
[1720034887980,1.570378,3284.4,3283.4,3.04554]
[1720034888190,1.570378,3284.6,3283.5,3.350074]
[1720034888484,3.04443,3284.7,3283.6,3.21]
[1720034888704,3.04424,3284.9,3283.7,6.25526]
[1720034888977,3.04432,3284.8,3283.7,6.25526]
[1720034889187,3.04432,3284.8,3283.8,3.04522]
[1720034889343,3.12053384,3284.7,3283.8,0.930048]
[1720034889543,3.04467,3284.5,3283.5,0.304554]
[1720034891774,3.1208129,3284.4,3283.5,0.304554]
[1720034892429,3.04469,3284.4,3283.5,0.304554]
[1720034892701,4.61252777,3284.9,3283.6,3.06179096]
[1720034893026,0.07611806,3284.8,3283.7,0.6576345]
[1720034893705,3.04449,3284.7,3283.7,0.6576345]
[1720034893908,0.07611808,3284.6,3283.7,0.6576345]
[1720034894627,3.12063808,3284.6,3283.7,0.6576345]
[1720034894839,0.07611808,3284.6,3283.8,0.37030445]
[1720034895026,3.12066808,3284.6,3283.8,0.37030445]
[1720034895538,0.07611808,3284.6,3283.8,0.37030445]
[1720034896316,3.12006817,3285.2,3283.9,0.01636953]
[1720034896547,0.07611817,3285.2,3284.0,3.04504]
[1720034896835,3.04419,3285.0,3284.1,0.67749207]
[1720034899141,3.04419,3285.0,3284.1,0.66114095]
[1720034899307,3.044,3285.2,3283.9,3.55]
[1720034899644,0.07611059,3285.1,3283.9,3.55]
[1720034899850,0.07611059,3285.1,3281.6,4.32891546]
[1720034899851,0.07611059,3285.1,3283.1,6.9688]
[1720034900031,3.04479,3284.3,3283.2,3.04574]
[1720034900239,3.04479,3284.3,3283.4,3.04561]
[1720034900557,3.04479,3284.3,3283.3,3.0457]
[1720034901748,6.08966,3284.3,3283.3,3.0457]
[1720034902105,3.04479,3284.3,3283.3,3.0457]
[1720034902306,3.04479,3284.3,3283.4,0.695258]
[1720034902811,6.08965,3284.3,3283.4,0.695258]
[1720034903111,3.04479,3284.3,3283.4,0.695258]
[1720034904157,1.56528676,3284.8,3283.7,3.04527]
[1720034904465,1.56528676,3284.8,3283.6,3.21]
[1720034904466,3.12058455,3284.7,3283.6,3.21]
[1720034904608,3.04485,3284.3,3283.3,3.04568]
[1720034904834,3.04485,3284.3,3283.4,3.0]
[1720034905655,6.08971,3284.3,3283.4,3.0]
[1720034905859,3.04475,3284.4,3283.4,3.0]
[1720034906054,3.12087514,3284.4,3283.4,3.0]
[1720034906268,3.04475,3284.4,3283.5,0.62095294]
[1720034906460,3.04481,3284.3,3283.5,0.604568]
[1720034907048,3.0449,3284.2,3283.5,0.604568]
[1720034907849,3.04454,3284.6,3283.5,6.860018]
[1720034908057,3.04454,3284.6,3283.6,0.55]
[1720034908058,3.04461,3284.5,3283.6,0.55]
[1720034908269,3.04461,3284.5,3283.7,0.7410018]
[1720034908641,1.56528676,3284.8,3283.8,0.55]
[1720034908988,3.04442,3284.7,3283.8,0.55]
[1720034909287,3.04442,3284.7,3283.8,3.59524]
[1720034909595,3.04457,3284.6,3283.7,0.7410018]
[1720034909806,0.07611874,3284.5,3283.5,0.604568]
[1720034909957,3.04476,3284.4,3283.5,0.604568]
[1720034910614,0.07612226,3284.3,3283.5,0.604568]
[1720034911159,3.04494,3284.2,3283.3,3.0]
[1720034911464,3.04494,3284.2,3283.3,6.0457]
[1720034913092,3.04468,3284.5,3283.4,3.04555]
[1720034913392,0.52736518,3284.4,3283.5,3.59546]
[1720034913602,3.04455,3284.6,3283.6,0.680546]
[1720034913776,0.52733521,3284.5,3283.6,0.680546]
[1720034913976,3.04455,3284.6,3283.7,0.01637238]
[1720034914283,0.52732739,3284.5,3283.7,0.01637238]
[1720034914601,0.52732739,3284.4,3283.7,0.01637238]
[1720034914809,3.04455,3284.6,3283.8,0.37423384]
[1720034915016,0.52733146,3284.5,3283.9,0.01637089]
[1720034915208,0.52733146,3284.4,3283.9,0.01637089]
[1720034915371,3.64807022,3284.5,3283.8,0.37423384]
[1720034915577,0.52733146,3284.4,3283.6,0.680546]
[1720034916508,3.0449,3284.2,3283.3,3.0]
[1720034916684,0.52733146,3284.1,3283.3,3.0]
[1720034917086,0.52738863,3284.0,3283.3,3.0]
[1720034917300,3.0449,3284.2,3283.3,3.0]
[1720034917509,0.52738252,3284.1,3283.4,0.690688]
[1720034917872,0.52738252,3284.0,3283.4,0.690688]
[1720034918077,3.04481,3284.3,3283.4,0.690688]
[1720034918274,0.52737774,3284.2,3283.4,0.690688]
[1720034918588,0.52737774,3284.1,3283.4,0.690688]
[1720034918795,3.04462,3284.5,3283.5,0.6736388]
[1720034918996,0.52736044,3284.4,3283.5,0.6736388]
[1720034919202,0.52736044,3284.3,3283.5,0.6736388]
[1720034919593,0.52736044,3284.3,3283.6,3.04543]
[1720034919830,0.52736044,3284.5,3283.7,6.80526]
[1720034920009,0.52731099,3284.4,3283.8,0.680526]
[1720034920213,3.04437,3284.8,3283.9,0.01636236]
[1720034920409,3.64787972,3284.7,3283.9,0.01636236]
[1720034920655,0.52731482,3284.6,3283.8,0.680526]
[1720034921110,0.52734598,3284.5,3283.8,0.680526]
[1720034921443,0.52734598,3284.4,3283.8,0.680526]
[1720034921749,0.52734598,3284.5,3283.8,0.680526]
[1720034921923,0.52734598,3284.4,3283.8,0.680526]
[1720034922247,0.52734598,3284.3,3283.5,3.8836388]
[1720034922457,0.52734598,3284.4,3283.6,0.55]
[1720034922615,3.57204598,3284.4,3283.6,0.55]
[1720034922815,0.52734598,3284.3,3283.6,0.55]
[1720034923533,0.52735602,3284.2,3283.6,0.55]
[1720034923733,3.0447,3284.4,3283.7,0.74791588]
[1720034923950,0.52735563,3284.3,3283.7,0.74791588]
[1720034924261,0.52735563,3284.2,3283.7,0.74791588]
[1720034924411,4.29660027,3284.5,3283.7,0.74791588]
[1720034924611,0.52735154,3284.4,3283.7,0.74791588]
[1720034924832,0.52735154,3284.3,3283.8,0.43433359]
[1720034925039,0.52735154,3284.2,3283.8,0.43433359]
[1720034925352,1.25198027,3284.5,3283.8,0.43433359]
[1720034925566,0.5273415,3284.4,3283.8,0.43433359]
[1720034925773,3.04488,3284.2,3283.3,6.21]
[1720034925919,3.04488,3284.2,3283.4,0.55]
[1720034926140,1.25198027,3284.5,3283.6,3.04542]
[1720034926344,3.57205451,3284.4,3283.7,0.625542]
[1720034926565,3.04471,3284.4,3283.5,3.21]
[1720034926882,0.52733685,3284.3,3283.6,0.55]
[1720034927036,0.52733685,3284.2,3283.6,6.80541]
[1720034927239,1.25198027,3284.5,3283.7,3.04533]
[1720034927447,0.52732184,3284.4,3283.8,0.985074]
[1720034927682,0.52732184,3284.3,3283.8,0.985074]
[1720034928185,1.77930211,3284.3,3283.8,0.985074]
[1720034928354,0.52732184,3284.2,3283.8,0.985074]
[1720034929154,1.77930211,3284.2,3283.3,6.04562]
[1720034929355,1.77930211,3284.1,3283.4,3.04562]
[1720034929558,1.25198027,3284.1,3283.5,3.0]
[1720034930169,1.25198027,3284.1,3283.3,3.21]
[1720034930378,1.25875477,3283.9,3283.4,3.55]
[1720034930580,1.25875477,3283.9,3283.5,0.676]
[1720034931093,1.25875477,3284.0,3283.5,0.676]
[1720034931299,1.25875477,3283.9,3283.4,3.55]
[1720034931448,1.25875477,3283.8,3283.4,3.55]
[1720034931643,1.25875477,3283.8,3283.4,3.0]
[1720034931875,1.25875477,3283.6,3283.3,3.0]
[1720034932272,1.25875477,3283.6,3283.1,6.9688]
[1720034932459,1.25875477,3283.4,3283.0,10.49]
[1720034932682,1.25875477,3283.4,3283.0,3.21]
[1720034932948,3.04521,3283.9,3283.0,3.21]
[1720034932949,1.25875477,3283.3,3283.0,3.21]
[1720034933371,1.25875477,3283.3,3283.0,3.835604]
[1720034933770,1.25875477,3283.3,3283.1,0.55]
[1720034934596,1.25875477,3283.3,3283.0,0.625604]
[1720034934830,1.25875477,3283.3,3282.8,6.21]
[1720034935098,1.25875477,3283.3,3282.9,3.55]
[1720034935401,1.25875477,3283.3,3281.9,12.49]
[1720034935699,4.30474477,3283.0,3281.9,12.49]
[1720034935987,1.25849622,3282.7,3282.1,3.04681]
[1720034936203,1.25849622,3282.7,3282.0,3.04691]
[1720034936343,1.25849622,3282.7,3282.1,3.656193]
[1720034936549,1.25849622,3282.8,3282.3,3.21]
[1720034936863,1.25849622,3282.8,3282.1,3.656193]
[1720034936864,1.25849622,3282.9,3282.1,0.609383]
[1720034937050,1.25849622,3282.8,3282.1,0.609383]
[1720034937960,4.61920027,3282.9,3282.1,0.609383]
[1720034937961,1.25849622,3282.7,3282.1,0.609383]
[1720034938162,1.25849622,3282.8,3282.1,0.609383]
[1720034938684,0.0761548,3282.7,3282.0,3.0]
[1720034938888,4.38092102,3282.7,3281.8,10.49]
[1720034939092,1.25849622,3282.6,3281.8,10.49]
[1720034939293,4.38092102,3282.7,3281.9,0.55]
[1720034939585,4.38092102,3282.7,3281.9,1.958718]
[1720034940261,4.38092102,3282.7,3281.9,4.958718]
[1720034940460,4.38092102,3282.7,3281.9,8.005708]
[1720034940461,1.25849622,3282.7,3281.9,8.005708]
[1720034940695,1.25849622,3282.7,3281.9,4.958718]
[1720034940901,3.04658,3282.4,3281.4,3.21]
[1720034941196,3.04658,3282.4,3281.5,3.04738]
[1720034941405,3.04658,3282.4,3281.6,3.0]
[1720034941550,1.25849622,3282.5,3281.6,3.0]
[1720034941751,3.12259867,3282.6,3281.7,6.25712]
[1720034941752,1.25849622,3282.6,3281.7,6.25712]
[1720034941954,1.25509571,3282.7,3282.0,3.04684]
[1720034942189,1.25509571,3282.9,3282.3,3.21]
[1720034942454,1.25509571,3282.9,3282.2,6.7853]
[1720034942455,4.30077571,3283.4,3282.4,6.59647]
[1720034942669,1.33124211,3283.5,3282.5,3.04645]
[1720034942879,0.0761464,3283.5,3282.5,3.04645]
[1720034943209,1.88264357,3284.0,3282.9,3.04601]
[1720034943210,1.56886964,3283.9,3282.9,3.04601]
[1720034943488,1.56886964,3284.1,3283.1,5.266]
[1720034943727,1.56886964,3284.4,3283.5,3.21]
[1720034943996,1.56886964,3284.7,3283.7,3.21]
[1720034944178,1.56886964,3284.7,3283.9,3.04514]
[1720034944389,1.56944565,3284.7,3284.0,0.0163565]
[1720034944560,1.56944565,3284.9,3284.0,0.5663565]
[1720034944757,1.56944565,3285.0,3284.0,0.5663565]
[1720034944979,1.56944565,3285.0,3284.1,3.04494]
[1720034945179,1.56944565,3285.0,3284.2,0.01634699]
[1720034945674,2.19722391,3285.6,3284.2,0.01634699]
[1720034945675,1.56944565,3285.1,3284.2,3.61116699]
[1720034945892,1.56944565,3285.1,3284.3,0.01633962]
[1720034946369,1.56944565,3285.2,3284.3,0.01633962]
[1720034946999,1.56944565,3285.3,3284.6,3.0445]
[1720034947161,1.56944565,3285.4,3284.7,0.01632433]
[1720034947362,3.11996934,3285.3,3284.2,3.76]
[1720034947668,3.11996934,3285.3,3284.0,10.32506]
[1720034947669,4.61373543,3285.1,3284.0,10.32506]
[1720034949205,4.69050892,3284.4,3283.4,7.28]
[1720034949506,4.69050892,3284.4,3283.5,3.0]
[1720034950406,0.07612349,3284.4,3283.5,3.0]
[1720034950613,4.61372393,3284.4,3283.5,4.958129]
[1720034950770,1.56900393,3284.5,3283.6,3.04542]
[1720034950967,4.61356393,3284.6,3283.6,3.04542]
[1720034951206,4.68975406,3284.5,3283.5,3.0]
[1720034951375,3.045,3284.1,3282.9,7.28]
[1720034951711,3.04591,3283.1,3282.3,7.28]
[1720034951922,1.56900393,3283.2,3282.3,0.728]
[1720034952066,3.12202958,3283.2,3282.0,3.21]
[1720034952439,3.12202958,3283.2,3282.0,3.04691]
[1720034952440,3.0459,3283.1,3282.0,3.04691]
[1720034952585,0.07615843,3283.0,3281.8,3.04707]
[1720034952992,4.61472393,3283.3,3282.2,3.04666]
[1720034953182,4.61454393,3283.5,3282.4,3.21]
[1720034953510,3.04537,3283.7,3282.5,6.2728692]
[1720034953511,3.04543,3283.6,3282.5,6.2728692]
[1720034953811,6.0452,3283.9,3282.5,6.2728692]
[1720034953812,1.56689399,3283.8,3282.7,6.25619]
[1720034954008,0.07613875,3283.9,3282.8,3.61256892]
[1720034954224,1.56691423,3284.2,3283.0,3.04598]
[1720034954514,3.04507,3284.0,3283.1,0.55]
[1720034954662,3.04507,3284.0,3282.8,6.80611]
[1720034954663,0.07613283,3283.9,3282.8,6.80611]
[1720034954864,0.07613283,3283.9,3282.9,0.85337269]
[1720034955089,3.04527,3283.8,3282.8,6.80611]
[1720034955277,0.07613883,3283.7,3282.8,6.80611]
[1720034955702,7.0831,3283.6,3281.6,7.3863]
[1720034955872,1.56691423,3283.4,3282.3,3.04656]
[1720034956068,0.07615069,3283.3,3282.3,3.04656]
[1720034956379,0.07615069,3283.3,3282.3,3.672216]
[1720034956925,3.12192069,3283.3,3282.3,3.672216]
[1720034957073,3.12192074,3283.3,3282.3,3.672216]
[1720034957408,0.07615076,3283.2,3282.3,3.672216]
[1720034959295,0.07615091,3283.3,3282.3,3.672216]
[1720034959471,0.07615091,3283.3,3282.4,0.6882216]
[1720034961431,3.12192091,3283.3,3282.4,0.6882216]
[1720034962039,3.12192091,3283.3,3282.3,3.04656]
[1720034962207,0.07615093,3283.2,3282.3,3.21]
[1720034962722,3.12201093,3283.2,3282.3,3.21]
[1720034963094,3.12201093,3283.2,3282.2,3.21]
[1720034963294,3.04592,3283.1,3282.3,3.55]
[1720034963539,3.04592,3283.1,3281.9,10.32697]
[1720034963540,3.12207116,3283.1,3281.9,10.32697]
[1720034963846,3.04612,3282.9,3282.0,3.5969]
[1720034964128,3.04612,3282.9,3282.0,0.55]
[1720034965218,0.07615697,3282.8,3281.9,8.617416]
[1720034965392,3.04629,3282.7,3281.9,8.617416]
[1720034966646,0.07616129,3282.6,3281.1,7.28]
[1720034966810,3.0469,3282.1,3281.1,3.0477]
[1720034967333,0.07617709,3282.0,3281.1,3.0477]
[1720034967630,3.12314709,3282.0,3281.2,0.30477]
[1720034967851,3.12314709,3282.0,3281.0,3.21]
[1720034967852,3.04702,3281.9,3281.0,3.21]
[1720034967991,3.12319895,3281.9,3281.0,3.21]
[1720034968351,3.12319895,3281.9,3280.7,3.04808]
[1720034968495,3.12319895,3281.9,3280.8,0.304808]
[1720034968693,3.12319895,3281.9,3280.8,6.562828]
[1720034968694,3.04713,3281.8,3280.8,6.562828]
[1720034968897,0.07618296,3281.7,3280.9,3.0]
[1720034969693,3.04745,3281.5,3280.6,3.21]
[1720034970018,0.07618997,3281.4,3280.6,3.21]
[1720034970200,0.07618997,3281.4,3280.6,4.563825]
[1720034970748,0.07618997,3281.4,3280.6,1.353825]
[1720034970749,3.12367997,3281.4,3280.6,1.353825]
[1720034970906,3.12367997,3281.4,3280.6,4.353825]
[1720034971107,0.07619255,3281.3,3280.6,4.353825]
[1720034971942,0.07619255,3281.6,3280.7,1.17993055]
[1720034972169,3.04632,3282.7,3280.9,3.21]
[1720034972170,3.04681,3282.2,3280.9,3.21]
[1720034972306,1.56260473,3282.4,3281.1,3.21]
[1720034972307,0.07617994,3282.4,3281.1,3.21]
[1720034972513,3.0467,3282.3,3281.3,3.04757]
[1720034972713,0.07617492,3282.2,3281.4,0.01650572]
[1720034973347,3.0,3282.5,3281.4,0.01650572]
[1720034973512,3.04589,3283.2,3281.7,3.04719]
[1720034973513,3.04609,3282.9,3281.7,3.04719]
[1720034973713,3.04609,3282.9,3281.8,0.87119992]
[1720034973714,0.0761616,3282.8,3281.8,0.87119992]
[1720034974047,3.04627,3282.7,3281.8,0.32119992]
[1720034974857,0.07616411,3282.6,3281.8,0.32119992]
[1720034975076,0.07616411,3282.6,3281.8,0.304719]
[1720034975250,0.07616411,3282.6,3281.8,3.351749]
[1720034975444,3.04594,3283.1,3281.9,4.4161749]
[1720034975445,0.0761594,3283.1,3281.9,4.4161749]
[1720034975671,0.0761594,3283.1,3282.1,3.04681]
[1720034975841,0.0761594,3283.1,3282.2,0.01645869]
[1720034976039,1.56146288,3283.7,3282.2,0.01645869]
[1720034976040,3.04538,3283.7,3282.4,3.04647]
[1720034976238,1.56146288,3284.0,3282.4,3.04647]
[1720034976239,0.0761477,3283.6,3282.6,3.04634]
[1720034976553,0.07614443,3283.8,3282.7,3.36897058]
[1720034976744,0.07614329,3283.7,3282.8,0.01642982]
[1720034977170,0.07614345,3283.9,3282.8,6.82258982]
[1720034977489,7.0198,3284.2,3283.1,3.04589]
[1720034977490,0.07613553,3284.1,3283.1,3.04589]
[1720034977776,0.07613553,3284.1,3283.2,0.6255899]
[1720034977939,0.07613553,3284.1,3283.3,0.0164074]
[1720034978796,0.07613553,3284.1,3282.4,3.21]
[1720034978998,3.04445,3284.7,3282.1,3.04679]
[1720034978999,3.04582,3283.2,3282.1,3.04679]
[1720034979138,0.07615561,3283.1,3282.2,3.04673]
[1720034979650,0.07615561,3283.1,3282.0,3.04685]
[1720034979965,3.12207561,3283.1,3282.0,6.25685]
[1720034980592,3.12207561,3283.1,3282.1,3.04682]
[1720034980898,3.04565,3283.4,3282.1,6.25673]
[1720034981103,3.04565,3283.4,3281.8,7.28]
[1720034981104,0.52756673,3283.3,3282.3,6.25656]
[1720034981407,3.07614927,3283.5,3282.4,0.55]
[1720034981554,6.12167927,3283.5,3282.5,0.01644021]
[1720034981768,3.04528,3283.8,3282.6,3.04634]
[1720034982094,3.60365356,3283.7,3282.7,0.56643139]
[1720034982393,10.06489,3284.0,3282.7,7.80960153]
[1720034982603,0.60360232,3283.9,3282.7,14.69810153]
[1720034982813,0.07613675,3283.9,3282.7,14.68167014]
[1720034982986,3.04542,3283.7,3282.7,1.53692014]
[1720034983315,0.07614351,3283.6,3282.8,0.45832801]
[1720034983598,0.07612944,3284.0,3282.9,3.76]
[1720034983784,3.12126944,3284.0,3282.9,6.80608]
[1720034983993,0.5274535,3283.9,3282.9,6.80608]
[1720034984202,3.12139612,3283.8,3282.9,0.55]
[1720034984368,0.07613612,3283.8,3282.8,3.04617]
[1720034984559,3.12140612,3283.8,3282.8,1.230249]
[1720034984789,3.12140612,3283.8,3282.8,4.276399]
[1720034984987,6.16674612,3283.8,3282.8,1.230249]
[1720034985196,0.52749932,3283.7,3282.6,6.04628]
[1720034985397,0.0761399,3283.6,3282.7,6.8062]
[1720034985603,0.0761399,3283.6,3282.7,3.5962]
[1720034986268,3.12151091,3283.7,3282.7,0.55]
[1720034986472,0.52752234,3283.6,3282.7,1.44787729]
[1720034986770,0.07614158,3283.5,3282.7,0.89787729]
[1720034989504,3.04527,3283.8,3282.8,0.55]
[1720034989877,0.07614011,3283.9,3282.9,3.04606]
[1720034990067,0.07614011,3283.9,3283.0,1.230606]
[1720034990268,3.04508,3284.0,3283.1,0.01641171]
[1720034991715,4.56418748,3284.4,3283.3,3.04564]
[1720034991915,0.6035255,3284.3,3283.4,0.0163928]
[1720034992074,0.07612787,3284.3,3283.4,0.0163928]
[1720034992271,0.07612788,3284.3,3283.5,3.04551]
[1720034992470,0.07612788,3284.3,3283.6,0.01638288]
[1720034993497,3.07612376,3284.5,3283.6,0.01638288]
[1720034994015,1.56418748,3284.6,3283.9,3.21]
[1720034994212,1.5656065,3284.9,3284.0,3.61139538]
[1720034994410,1.64171851,3285.0,3284.0,3.61139538]
[1720034994596,1.64171851,3285.0,3284.0,6.65638538]
[1720034994773,1.64171851,3285.0,3284.0,7.64302392]
[1720034994971,1.64171851,3285.0,3284.0,4.58162854]
[1720034995201,4.68587851,3285.0,3284.0,4.58162854]
[1720034995500,3.0,3284.9,3284.0,4.58162854]
[1720034995728,3.07611202,3284.9,3284.0,4.58162854]
[1720034996315,0.07611202,3284.9,3284.1,0.79551751]
[1720034996800,3.12025205,3285.0,3284.1,0.79551751]
[1720034997001,3.0,3284.9,3284.1,0.77916285]
[1720034997203,3.0,3285.0,3284.1,3.82412285]
[1720034997536,0.07611108,3284.9,3284.1,3.82412285]
[1720034997734,0.07611108,3284.9,3284.2,0.84057514]
[1720034998030,3.12018114,3285.1,3284.2,0.84057514]
[1720034999452,7.60834541,3285.5,3284.2,3.88539514]
[1720034999606,3.119936,3285.4,3284.3,3.59477]
[1720034999810,3.0,3285.3,3284.4,0.74801651]
[1720035000042,3.07610602,3285.3,3284.4,0.74801651]
[1720035000541,3.07610602,3285.3,3284.3,0.55]
[1720035000542,3.12011608,3285.2,3284.3,0.55]
[1720035000936,0.07610608,3285.2,3284.3,6.80473]
[1720035001119,3.11978162,3285.5,3284.5,3.0446]
[1720035002111,6.16353162,3285.5,3284.6,0.01633002]
[1720035002337,3.04377,3285.4,3284.5,3.0446]
[1720035002522,0.07610172,3285.3,3284.6,0.30446]
[1720035003041,0.07610172,3285.3,3284.4,3.04463]
[1720035003348,0.07610172,3285.3,3284.5,0.55]
[1720035003732,0.07610172,3285.3,3284.5,3.5946]
[1720035003943,0.07610172,3285.3,3284.6,0.01633002]
[1720035004346,0.07610171,3285.6,3284.6,3.06076002]
[1720035004547,7.1881,3286.3,3284.9,3.04415]
[1720035004860,3.04321,3286.0,3285.0,0.01630378]
[1720035005180,3.0435,3285.7,3284.8,3.04432]
[1720035005332,3.11959592,3285.7,3284.9,0.6770716]
[1720035005528,0.07609592,3285.9,3285.0,0.01631612]
[1720035005731,3.11939592,3285.9,3285.0,0.01631612]
[1720035005933,3.11939592,3285.9,3284.9,0.6770716]
[1720035005934,3.04352,3285.7,3284.9,0.6770716]
[1720035006255,3.04352,3285.7,3284.3,2.741]
[1720035006256,3.04419,3285.0,3284.2,7.4828]
[1720035006455,0.0761186,3284.9,3283.8,3.04524]
[1720035006758,6.08873,3284.8,3283.8,3.04524]
[1720035006984,0.07611705,3284.7,3283.8,3.04524]
[1720035008325,3.12052705,3284.7,3283.9,3.0]
[1720035008531,0.07611705,3284.7,3284.0,0.604524]
[1720035008843,3.04362,3285.6,3284.3,3.04478]
[1720035009043,3.04378,3285.4,3284.4,0.01633765]
[1720035009241,3.04378,3285.4,3284.1,6.25488]
[1720035009242,3.04396,3285.2,3284.1,6.25488]
[1720035009445,3.04396,3285.2,3284.0,0.604524]
[1720035009446,3.04452,3284.6,3284.0,0.604524]
[1720035009676,0.07612007,3284.5,3283.8,3.0]
[1720035009881,3.0448,3284.3,3283.5,6.8753]
[1720035010080,3.04498,3284.1,3283.1,10.32582]
[1720035010281,0.07613096,3284.1,3283.2,3.0458]
[1720035010486,6.12068096,3284.6,3283.1,7.28]
[1720035010699,3.04514,3284.0,3283.1,9.039807]
[1720035010994,0.07613469,3283.9,3283.1,12.085697]
[1720035011601,0.07613469,3283.9,3283.1,9.039807]
[1720035012153,0.07613469,3283.9,3283.1,12.085687]
[1720035012696,0.07613469,3283.9,3283.1,9.039807]
[1720035012902,3.04529,3283.8,3283.0,7.272]
[1720035013183,3.04529,3283.8,3282.6,7.28]
[1720035013184,3.0455,3283.6,3282.6,10.32634]
[1720035013395,0.0761442,3283.5,3282.7,3.0]
[1720035013547,0.0761442,3283.5,3282.8,0.604634]
[1720035014696,0.0761442,3283.5,3282.5,7.1354]
[1720035014850,3.1216842,3283.5,3282.6,0.55]
[1720035015894,0.0761442,3283.5,3282.1,10.32682]
[1720035016054,3.04582,3283.2,3282.2,6.0467]
[1720035016254,0.07615238,3283.1,3282.3,1.637352]
[1720035017954,0.07615238,3283.1,3281.9,13.07557]
[1720035018255,3.04605,3283.0,3282.0,6.04692]
[1720035018460,0.07615868,3282.9,3282.0,6.04692]
[1720035020255,3.12224868,3282.9,3281.9,10.0286]
[1720035020537,3.12224868,3282.9,3282.0,0.55]
[1720035020738,3.12224868,3282.9,3282.1,1.05786]
[1720035020944,3.12224868,3282.9,3281.4,17.28172]
[1720035020945,2.13315868,3282.9,3281.4,17.28172]
[1720035021238,3.04673,3282.3,3281.4,14.2343]
[1720035021570,0.07617408,3282.2,3281.4,6.9543]
[1720035021851,0.07617408,3282.2,3281.5,1.000186]
[1720035023015,3.0463,3282.7,3281.7,3.04718]
[1720035023205,0.07616624,3282.7,3281.7,3.04718]
[1720035023407,0.07616624,3282.7,3281.6,3.59721]
[1720035023408,3.04576,3283.3,3282.1,3.04681]
[1720035023639,0.07615501,3283.2,3282.2,0.32113895]
[1720035023840,0.07615501,3283.2,3282.3,0.01645744]
[1720035024576,3.12197501,3283.2,3282.2,0.55]
[1720035024856,2.057,3283.5,3282.1,3.76]
[1720035024857,0.07615511,3283.3,3282.1,3.76]
[1720035025022,0.07615511,3283.3,3282.4,3.04652]
[1720035025223,0.07615178,3283.4,3282.5,3.04645]
[1720035025461,0.07615178,3283.4,3282.6,3.655617]
[1720035025676,0.0761474,3283.5,3282.6,3.655617]
[1720035025962,7.3128,3284.1,3282.6,3.655617]
[1720035025963,7.3128,3284.1,3283.0,3.04593]
[1720035026122,1.56259128,3284.4,3283.2,3.04571]
[1720035026123,3.04475,3284.4,3283.2,3.04571]
[1720035026315,3.04491,3284.2,3283.2,3.04571]
[1720035026527,0.07613333,3284.1,3283.3,0.01640591]
[1720035027325,0.07613333,3284.1,3283.3,3.06210591]
[1720035027525,3.0761333,3284.3,3283.4,0.61078159]
[1720035027791,0.0761333,3284.2,3283.4,0.61078159]
[1720035029259,3.1210233,3284.2,3283.4,0.61078159]
[1720035029564,3.04508,3284.0,3283.0,3.04595]
[1720035029783,3.04527,3283.8,3282.6,3.04632]
[1720035029932,0.07614056,3283.7,3282.9,3.04607]
[1720035030129,0.07614056,3283.7,3282.7,4.882632]
[1720035030130,3.04544,3283.6,3282.7,1.332632]
[1720035030363,3.12167639,3283.5,3282.5,3.04643]
[1720035030528,0.07614781,3283.4,3282.2,10.32665]
[1720035030728,0.07614781,3283.4,3282.2,3.04665]
[1720035030930,0.07614781,3283.4,3282.4,3.04648]
[1720035031131,0.07614781,3283.4,3282.6,3.04635]
[1720035031454,0.07614755,3283.8,3282.9,3.04608]
[1720035031623,3.07614006,3283.9,3283.0,0.62564706]
[1720035031830,3.04526,3283.8,3283.0,0.609225]
[1720035032030,3.04526,3283.8,3282.7,3.04619]
[1720035032031,0.07614018,3283.7,3282.7,3.04619]
[1720035032264,0.07614018,3283.7,3282.8,0.55]
[1720035032461,3.04549,3283.6,3282.6,3.04635]
[1720035032768,0.07614622,3283.5,3282.5,10.32644]
[1720035032974,0.07614622,3283.5,3282.6,3.59635]
[1720035033158,0.07614622,3283.5,3282.7,1.087635]
[1720035033331,0.07614622,3283.5,3282.7,4.133885]